fUST/lending_fUST_20240121
["ID","MTS","AMOUNT","RATE_DAILY","PERIOD"]
[312375295,1705844367778,-154.73694719,0.00022057,2]
[312375296,1705844367798,-19863.4413156,0.00022057,2]
[312375297,1705844367818,-4377.94080744,0.00022057,2]
[312375298,1705844375233,682.29779934,0.00021162,2]
[312375299,1705844382107,3495.8052158,0.00021612,2]
[312375300,1705844385915,154.73694719,0.00019848,3]
[312375301,1705844386293,166.666666,0.00021918,2]
[312375302,1705844389226,519.23504288,0.00021162,2]
[312375304,1705844433510,-155.99163875,0.00019845,2]
[312375305,1705844433531,-254.06143163,0.00019845,2]
[312375306,1705844433553,-108.94692962,0.00019846,3]
[312375308,1705844489742,200.0,0.00021821,7]
[312375309,1705844499302,-2034.18918627,0.00019836,2]
[312375310,1705844499324,-3745.3390844,0.00019836,2]
[312375311,1705844499343,-3129.43626556,0.00019837,2]
[312375312,1705844499364,-53545.03546377,0.00019837,2]
[312375314,1705844569596,-211.49658438,0.00018817,2]
[312375315,1705844569615,-154.73694719,0.00018817,2]
[312375316,1705844569635,-154.73694719,0.00018817,2]
[312375317,1705844569655,-261.08742669,0.00018817,2]
[312375318,1705844569675,-663.010092,0.00018818,2]
[312375319,1705844569704,-711.64153599,0.00018826,2]
[312375320,1705844569730,-154.73694719,0.00018826,2]
[312375321,1705844569754,-254.06143163,0.00018826,2]
[312375322,1705844569793,-154.88935421,0.00018827,2]
[312375323,1705844569837,-191.37607433,0.00018827,2]
[312375324,1705844569880,-1696.365997,0.00018827,2]
[312375325,1705844569924,-272.51041395,0.00018827,2]
[312375326,1705844569952,-10336.35024825,0.00018827,2]
[312375327,1705844688748,154.98450155,0.00016944,2]
[312375330,1705844708713,-1253.15755419,0.00017779,2]
[312375331,1705844708735,-211.49658438,0.0001778,2]
[312375332,1705844708759,-588.23188464,0.0001778,2]
[312375333,1705844708781,-1242.31465176,0.0001778,2]
[312375334,1705844708802,-191.37607433,0.0001778,2]
[312375335,1705844708824,-6513.4232507,0.0001778,2]
[312375337,1705844732588,250.0,0.00016781,2]
[312375338,1705844735981,155.15435031,0.00017689,2]
[312375339,1705844754751,155.29979075,0.0001592,2]
[312375340,1705844762004,684.06765609,0.00017689,2]
[312375343,1705844776001,648.91094944,0.00017689,2]
[312375344,1705844780108,10852.94054004,0.00017596,2]
[312375345,1705844784169,1216.85681556,0.00017774,5]
[312375346,1705844799087,-211.49658438,0.00017594,2]
[312375347,1705844799108,-101.89560056,0.00017594,2]
[312375349,1705844828219,-154.73694719,0.00017589,2]
[312375350,1705844828240,-154.73694719,0.00017589,2]
[312375351,1705844828260,-1203.32131945,0.00017589,2]
[312375352,1705844830086,-789.79296347,0.00017589,2]
[312375353,1705844830106,-2367.25255344,0.00017589,2]
[312375354,1705844833090,-160.99075113,0.00017588,2]
[312375355,1705844833111,-163.09864906,0.00017588,2]
[312375356,1705844833131,-526.64913826,0.00017588,2]
[312375357,1705844833151,-1330.96843871,0.00017589,2]
[312375358,1705844844569,6746.73763975,0.00017415,2]
[312375360,1705844853684,-977.81939146,0.00017585,2]
[312375361,1705844853712,-7958.71474131,0.00017585,2]
[312375362,1705844853738,-154.73694719,0.00017586,2]
[312375363,1705844853765,-329.46843563,0.00017586,2]
[312375364,1705844853792,-3739.26048441,0.00017586,2]
[312375365,1705844864001,359.844425,0.00016588,2]
[312375366,1705844867235,1061.14723092,0.00015828,2]
[312375367,1705844873961,17072.9696902,0.00016587,2]
[312375368,1705844882833,198.78272721,0.00017148,2]
[312375369,1705844904694,74560.51828692,0.00017415,2]
[312375370,1705844906226,2664.66022457,0.00016,5]
[312375371,1705844940770,2444.94484306,0.00017238,2]
[312375372,1705844963095,-155.99163875,0.00017406,2]
[312375373,1705844963115,-154.73694719,0.00017406,2]
[312375374,1705844963135,-1993.11428292,0.00017406,2]
[312375375,1705844963155,-154.73694719,0.00017407,2]
[312375376,1705844963175,-260.71552206,0.00017407,7]
[312375377,1705844963195,-1253.15755419,0.00017407,2]
[312375378,1705844963215,-246.1618135,0.00017407,2]
[312375379,1705844963236,-154.73694719,0.00017407,2]
[312375380,1705844963256,-4813.00638666,0.00017407,2]
[312375381,1705844963275,-1811.41770485,0.00017407,2]
[312375382,1705844963295,-13717.4313798,0.00017407,2]
[312375383,1705844963314,-323.52155902,0.00017407,2]
[312375384,1705844963335,-8850.69341333,0.00017407,2]
[312375385,1705844986029,4051.01994728,0.00016882,2]
[312375386,1705845005104,15839.37498509,0.00017238,2]
[312375388,1705845018872,4650.6420233,0.00016531,2]
[312375454,1705845032447,-165.11503956,0.00017235,2]
[312375456,1705845032458,-1579.05681645,0.00017235,2]
[312375459,1705845032470,-2034.18918627,0.00017235,2]
[312375461,1705845032482,-163.09864906,0.00017235,2]
[312375463,1705845032493,-555.24243185,0.00017236,2]
[312375465,1705845032504,-261.08742669,0.00017236,2]
[312375467,1705845032516,-2835.99417246,0.00017236,2]
[312375469,1705845032527,-1004.21459224,0.00017236,2]
[312375471,1705845032538,-36958.2042176,0.00017236,2]
[312375474,1705845032551,-81194.50609145,0.00017236,2]
[312375476,1705845032562,-470.5887913,0.00017237,2]
[312375478,1705845032572,-2102.94542064,0.00017237,2]
[312375480,1705845032583,-170.38743963,0.00017237,2]
[312375482,1705845032594,-2073.50516209,0.00017237,2]
[312375484,1705845032605,-154.73694719,0.00017237,2]
[312375487,1705845032615,-154.73694719,0.00017237,2]
[312375489,1705845032625,-711.64153599,0.00017237,2]
[312375491,1705845032637,-175.18966106,0.00017237,2]
[312375493,1705845032647,-1696.365997,0.00017237,2]
[312375495,1705845032658,-154.73694719,0.00017237,2]
[312375497,1705845032668,-20870.64149972,0.00017237,2]
[312375500,1705845032679,-7194.76870602,0.00017238,2]
[312375583,1705845038278,-616.63420581,0.00017234,2]
[312375584,1705845038287,-154.73694719,0.00017235,3]
[312375585,1705845038297,-1468.41470444,0.00017235,2]
[312375586,1705845038306,-262.2850779,0.00017235,2]
[312375587,1705845038316,-588.23188464,0.00017235,2]
[312375588,1705845038325,-154.73694719,0.00017235,2]
[312375589,1705845038334,-260.82481648,0.00017235,2]
[312375591,1705845038343,-8760.12309796,0.00017235,2]
[312375593,1705845038352,-2002.20651061,0.00017236,2]
[312375595,1705845038361,-159.5482763,0.00017236,2]
[312375597,1705845038370,-234815.86081904,0.00017238,2]
[312375598,1705845038379,-1589.80949829,0.00017398,2]
[312375599,1705845038388,-265.43031538,0.00017398,2]
[312375600,1705845038397,-213.3962609,0.00017398,2]
[312375601,1705845038406,-156.9264307,0.00017399,2]
[312375602,1705845038416,-154.73694719,0.00017399,2]
[312375604,1705845038425,-272.51041395,0.00017399,2]
[312375606,1705845038434,-211.49658438,0.00017399,2]
[312375607,1705845038443,-19697.53585665,0.00017399,2]
[312375609,1705845038452,-1602.84826341,0.000174,2]
[312375611,1705845038461,-687.82278777,0.000174,2]
[312375613,1705845038472,-154.73694719,0.000174,2]
[312375614,1705845038485,-191.37607433,0.000174,2]
[312375616,1705845038494,-3745.3390844,0.000174,2]
[312375618,1705845038504,-294.81882163,0.000174,2]
[312375620,1705845038514,-595.02587032,0.000174,2]
[312375622,1705845038523,-561.53264515,0.000174,2]
[312375624,1705845038532,-19863.4413156,0.000174,2]
[312375626,1705845038541,-903.44368425,0.00017401,2]
[312375628,1705845038551,-154.73694719,0.00017401,2]
[312375629,1705845038562,-154.73694719,0.00017401,2]
[312375631,1705845038571,-644.2750614,0.00017401,2]
[312375633,1705845038580,-154.88935421,0.00017401,2]
[312375634,1705845038590,-2038.68616841,0.00017401,2]
[312375635,1705845038599,-20898.36993383,0.00017401,2]
[312375637,1705845038608,-679.97177576,0.00017401,2]
[312375639,1705845038617,-1242.31465176,0.00017402,2]
[312375641,1705845038627,-154.73694719,0.00017402,2]
[312375643,1705845038635,-1266.53793061,0.00017402,2]
[312375644,1705845038645,-1293.51070224,0.00017402,2]
[312375645,1705845038654,-876.22858684,0.00017402,2]
[312375646,1705845038663,-178.88598493,0.00017402,2]
[312375647,1705845038672,-2814.61840706,0.00017402,2]
[312375648,1705845038682,-178.72553663,0.00017402,2]
[312375649,1705845038691,-18901.14352222,0.00017402,2]
[312375650,1705845038701,-170.87637718,0.00017403,2]
[312375651,1705845038710,-243.07986373,0.00017403,2]
[312375652,1705845038720,-3129.43626556,0.00017403,2]
[312375653,1705845038729,-15217.05988375,0.00017403,2]
[312375654,1705845038739,-15912.03300123,0.00017403,2]
[312375655,1705845038748,-1740.68284208,0.00017404,2]
[312375656,1705845038757,-168.1516153,0.00017404,2]
[312375657,1705845038768,-260.71552206,0.00017404,7]
[312375658,1705845038777,-268.70553717,0.00017404,2]
[312375659,1705845038787,-1253.15755419,0.00017404,2]
[312375660,1705845038796,-13717.4313798,0.00017404,2]
[312375661,1705845038806,-1994.06352396,0.00017404,2]
[312375662,1705845038817,-10606.14096915,0.00017404,2]
[312375663,1705845038826,-247.50946715,0.00017405,2]
[312375664,1705845038835,-330.54422927,0.00017405,2]
[312375665,1705845038844,-323.60660775,0.00017405,2]
[312375666,1705845038854,-2089.19601767,0.0001741,2]
[312375667,1705845038865,-309.41211698,0.00017412,2]
[312375668,1705845038877,-309.41211798,0.00017412,2]
[312375669,1705845038887,-155.1899775,0.00017415,2]
[312375670,1705845038897,-156.26570952,0.00017415,2]
[312375671,1705845038909,-156.29692174,0.00017578,2]
[312375672,1705845038918,-329.26153677,0.00017585,2]
[312375673,1705845038927,-209.39447747,0.00017586,2]
[312375674,1705845038936,-154.73694719,0.00017588,2]
[312375675,1705845038946,-161.41169798,0.00017591,2]
[312375676,1705845038956,-528.33981378,0.00017591,2]
[312375677,1705845038965,-225.40245301,0.00017774,2]
[312375678,1705845038974,-166.94378863,0.00017774,2]
[312375679,1705845038983,-155.09769188,0.00017774,2]
[312375680,1705845038993,-747.63315578,0.00017774,5]
[312375681,1705845039002,-155.03746213,0.00017778,2]
[312375682,1705845039011,-154.73694719,0.00017778,2]
[312375683,1705845039020,-1068.3905529,0.00017782,2]
[312375684,1705845039030,-10534.70287753,0.00017898,2]
[312375685,1705845039039,-274.86515668,0.00018803,2]
[312375686,1705845039050,-154.79876161,0.00018804,2]
[312375687,1705845039059,-154.86618242,0.00018804,2]
[312375688,1705845039068,-155.34695243,0.00018811,2]
[312375689,1705845039077,-156.440844,0.00018812,2]
[312375690,1705845039088,-155.06577619,0.00018812,2]
[312375691,1705845039097,-24900.0,0.00018828,2]
[312375692,1705845039106,-1259.89321397,0.00019,2]
[312375693,1705845039115,-173.519603,0.00019178,2]
[312375694,1705845039125,-1114.30379801,0.000195,2]
[312375695,1705845039134,-200.0,0.00019546,2]
[312375696,1705845039144,-151.0,0.0001974,2]
[312375697,1705845039154,-206.18032623,0.00019813,2]
[312375698,1705845039163,-160.64828034,0.00019813,2]
[312375699,1705845039174,-254.79304162,0.00019813,2]
[312375700,1705845039183,-154.73694719,0.0002,2]
[312375701,1705845039193,-155.38271252,0.0002,2]
[312375702,1705845039203,-323.06508436,0.0002,2]
[312375703,1705845039214,-313.23857364,0.0002,2]
[312375704,1705845039222,-738.05311175,0.0002,2]
[312375705,1705845039232,-154.73694719,0.0002,2]
[312375706,1705845039241,-678.4765603,0.0002,2]
[312375707,1705845039252,-432.89119555,0.0002,2]
[312375708,1705845039262,-154.73694719,0.0002,2]
[312375709,1705845039272,-571.23526773,0.0002,2]
[312375710,1705845039282,-300.0,0.0002,2]
[312375711,1705845039291,-862.58495294,0.0002,2]
[312375712,1705845039303,-151.0,0.00020653,2]
[312375713,1705845039312,-174.547786,0.00020778,2]
[312375714,1705845039321,-328.41896336,0.00021,2]
[312375715,1705845039331,-164.04448597,0.00021162,2]
[312375716,1705845039340,-280.0,0.00021501,7]
[312375717,1705845039349,-151.0,0.00021566,2]
[312375718,1705845039358,-883.78663901,0.0002182,2]
[312375719,1705845039367,-166.666666,0.00021918,2]
[312375720,1705845039377,-425.88213647,0.00022,2]
[312375721,1705845039386,-3967.54249474,0.00022,2]
[312375722,1705845039398,-154.73694719,0.00022,2]
[312375723,1705845039408,-336.42455316,0.00022,4]
[312375724,1705845039417,-158.15092873,0.00022053,2]
[312375725,1705845039427,-161.02504602,0.00022053,2]
[312375726,1705845039438,-166.666666,0.00022431,2]
[312375727,1705845039447,-151.0,0.00022479,2]
[312375728,1705845039456,-414.70781485,0.000229,2]
[312375729,1705845039467,-166.666666,0.00022944,2]
[312375730,1705845039480,-1571.13875008,0.00023,2]
[312375731,1705845039491,-151.0,0.00023392,2]
[312375732,1705845039500,-166.666666,0.00023456,2]
[312375733,1705845039510,-391.0,0.00023651,7]
[312375734,1705845039519,-166.666666,0.00023969,2]
[312375735,1705845039530,-4013.17086376,0.00024,2]
[312375736,1705845039538,-151.0,0.00024305,2]
[312375737,1705845039549,-166.666666,0.00024482,2]
[312375738,1705845039559,-2390.5442115,0.0002451,2]
[312375739,1705845039568,-655.47451385,0.00024563,2]
[312375740,1705845039577,-405.41592014,0.00024658,2]
[312375741,1705845039586,-359.844425,0.00024882,2]
[312375742,1705845039596,-496.4931708,0.0002496,5]
[312375743,1705845039605,-2826.98356816,0.00025,2]
[312375744,1705845039614,-237.57908484,0.00025,2]
[312375745,1705845039623,-1046.11952043,0.00025,2]
[312375746,1705845039633,-154.78330338,0.00025,2]
[312375747,1705845039644,-679.48219519,0.00025,2]
[312375748,1705845039653,-155.25204285,0.00025,2]
[312375749,1705845039664,-154.73694719,0.00025,2]
[312375750,1705845039673,-185.37059612,0.0002503,2]
[312375751,1705845039682,-151.0,0.00025218,2]
[312375752,1705845039691,-200.0,0.00025479,2]
[312375753,1705845039701,-372.81523309,0.00025824,2]
[312375754,1705845039710,-200.0,0.00026016,7]
[312375755,1705845039719,-348.0,0.00026016,7]
[312375756,1705845039728,-151.0,0.00026131,2]
[312375757,1705845039738,-844.2322286,0.000264,2]
[312375758,1705845039747,-155.29227458,0.00027,2]
[312375759,1705845039756,-151.0,0.00027044,2]
[312375760,1705845039765,-222.46229982,0.00027284,2]
[312375761,1705845039774,-186.2170274,0.00027284,2]
[312375762,1705845039783,-157.39904115,0.00027284,2]
[312375763,1705845039792,-221.78375436,0.00027284,2]
[312375764,1705845039801,-154.95351395,0.00027295,2]
[312375765,1705845039811,-154.76784823,0.00027295,2]
[312375766,1705845039820,-159.73759398,0.00027295,2]
[312375767,1705845039829,-154.76784823,0.00027295,2]
[312375768,1705845039841,-282.62773167,0.00027295,2]
[312375769,1705845039850,-515.38949,0.00027295,2]
[312375770,1705845039859,-515.38949,0.00027295,2]
[312375771,1705845039869,-500.0,0.00027296,2]
[312375772,1705845039878,-500.0,0.00027296,2]
[312375773,1705845039888,-500.0,0.00027296,2]
[312375774,1705845039897,-370.27679728,0.00027296,2]
[312375775,1705845039907,-500.0,0.00027296,2]
[312375776,1705845039916,-500.0,0.00027296,2]
[312375777,1705845039926,-500.0,0.00027296,2]
[312375778,1705845039935,-500.0,0.00027296,2]
[312375779,1705845039944,-208.50535178,0.00027296,2]
[312375780,1705845039953,-500.0,0.00027296,2]
[312375781,1705845039962,-545.50269674,0.00027296,2]
[312375782,1705845039971,-500.0,0.00027296,2]
[312375783,1705845039980,-500.0,0.00027296,2]
[312375784,1705845039989,-500.0,0.00027296,2]
[312375785,1705845039998,-500.0,0.00027296,2]
[312375786,1705845040008,-274.10884029,0.00027296,2]
[312375787,1705845040017,-500.0,0.00027296,2]
[312375788,1705845040027,-500.0,0.00027296,2]
[312375789,1705845040036,-500.0,0.00027296,2]
[312375790,1705845040045,-500.0,0.00027296,2]
[312375791,1705845040055,-500.0,0.00027296,2]
[312375792,1705845040063,-489.5960281,0.00027296,2]
[312375793,1705845040073,-500.0,0.00027296,2]
[312375794,1705845040082,-500.0,0.00027296,2]
[312375795,1705845040091,-500.0,0.00027296,2]
[312375796,1705845040100,-500.0,0.00027296,2]
[312375798,1705845040109,-500.0,0.00027296,2]
[312375800,1705845040118,-500.0,0.00027296,2]
[312375801,1705845040127,-500.0,0.00027296,2]
[312375803,1705845040136,-500.0,0.00027296,2]
[312375804,1705845040145,-561.04438939,0.00027296,2]
[312375805,1705845040154,-276000.0,0.00027297,2]
[312375806,1705845040163,-515.38949,0.00027297,2]
[312375808,1705845040172,-515.38949,0.00027297,2]
[312375810,1705845040181,-151.0,0.00027297,2]
[312375811,1705845040190,-151.0,0.00027297,2]
[312375812,1705845040199,-535.90514893,0.00027396,4]
[312375813,1705845040208,-381.25968954,0.00027396,4]
[312375814,1705845040217,-500.0,0.00027396,4]
[312375816,1705845040226,-500.0,0.00027396,4]
[312375817,1705845040235,-500.0,0.00027396,4]
[312375818,1705845040245,-500.0,0.00027396,4]
[312375819,1705845040254,-500.0,0.00027396,4]
[312375820,1705845040263,-181.01149076,0.00027396,4]
[312375821,1705845040273,-500.0,0.00027396,4]
[312375822,1705845040282,-580.06278249,0.00027396,4]
[312375824,1705845040292,-500.0,0.00027396,4]
[312375826,1705845040301,-500.0,0.00027396,4]
[312375828,1705845040310,-430.69114226,0.00027396,4]
[312375829,1705845040319,-569.4305536,0.00027396,4]
[312375830,1705845040328,-500.0,0.00027396,4]
[312375831,1705845040338,-500.0,0.00027396,4]
[312375833,1705845040347,-151.0,0.00027397,2]
[312375834,1705845040357,-279.177023,0.00027397,2]
[312375835,1705845040367,-151.0,0.00027397,2]
[312375837,1705845040376,-151.0,0.00027397,2]
[312375839,1705845040498,-151.0,0.00027397,2]
[312375840,1705845040511,-151.0,0.00027397,2]
[312375841,1705845040522,-406.14912,0.00027397,2]
[312375842,1705845040531,-406.14912,0.00027397,2]
[312375843,1705845040540,-406.14912,0.00027397,2]
[312375844,1705845040550,-406.14912,0.00027397,2]
[312375845,1705845040561,-151.0,0.00027397,2]
[312375846,1705845040571,-151.0,0.00027397,2]
[312375847,1705845040580,-151.0,0.00027397,2]
[312375848,1705845040589,-151.0,0.00027397,2]
[312375849,1705845040599,-1000.0,0.00027397,2]
[312375850,1705845040608,-1000.0,0.00027397,2]
[312375852,1705845040618,-1000.0,0.00027397,2]
[312375853,1705845040627,-1000.0,0.00027397,2]
[312375854,1705845040637,-515.38949,0.00027397,2]
[312375855,1705845040647,-515.38949,0.00027397,2]
[312375856,1705845040659,-515.38949,0.00027397,2]
[312375857,1705845040668,-515.38949,0.00027397,2]
[312375858,1705845040678,-500.0,0.00027397,2]
[312375859,1705845040687,-427.5739377,0.00027397,2]
[312375860,1705845040697,-500.0,0.00027397,2]
[312375861,1705845040707,-500.0,0.00027397,2]
[312375862,1705845040716,-500.0,0.00027397,2]
[312375863,1705845040726,-500.0,0.00027397,2]
[312375864,1705845040735,-594.84353903,0.00027397,2]
[312375865,1705845040746,-500.0,0.00027397,2]
[312375866,1705845040755,-500.0,0.00027397,2]
[312375867,1705845040766,-651.7,0.00027397,2]
[312375868,1705845040775,-500.0,0.00027397,2]
[312375869,1705845040786,-500.0,0.00027397,2]
[312375870,1705845040797,-500.0,0.00027397,2]
[312375871,1705845040807,-500.0,0.00027397,2]
[312375872,1705845040818,-500.0,0.00027397,2]
[312375873,1705845040829,-500.0,0.00027397,2]
[312375874,1705845040838,-500.0,0.00027397,2]
[312375875,1705845040849,-500.0,0.00027397,2]
[312375876,1705845040859,-500.0,0.00027397,2]
[312375877,1705845040869,-500.0,0.00027397,2]
[312375878,1705845040879,-251.91583428,0.00027397,2]
[312375879,1705845040888,-500.0,0.00027397,2]
[312375880,1705845040899,-509.29,0.00027397,2]
[312375881,1705845040908,-500.0,0.00027397,2]
[312375882,1705845040917,-459.96835433,0.00027397,2]
[312375883,1705845040928,-555.98,0.00027397,2]
[312375884,1705845040937,-500.0,0.00027397,2]
[312375885,1705845040946,-500.0,0.00027397,2]
[312375886,1705845040956,-500.0,0.00027397,2]
[312375887,1705845040965,-500.0,0.00027397,2]
[312375888,1705845040975,-1882.55,0.00027397,2]
[312375889,1705845040985,-500.0,0.00027397,2]
[312375890,1705845040994,-2550.67,0.00027397,2]
[312375891,1705845041004,-1014.72,0.00027397,2]
[312375892,1705845041015,-500.0,0.00027397,2]
[312375893,1705845041025,-515.33,0.00027397,2]
[312375894,1705845041035,-500.0,0.00027397,2]
[312375895,1705845041045,-500.0,0.00027397,2]
[312375897,1705845041054,-560.41922832,0.00027397,2]
[312375899,1705845041064,-274.77997287,0.00027397,2]
[312375901,1705845041073,-500.0,0.00027397,2]
[312375902,1705845041083,-500.0,0.00027397,2]
[312375903,1705845041095,-500.0,0.00027397,2]
[312375904,1705845041105,-500.0,0.00027397,2]
[312375906,1705845041114,-500.0,0.00027397,2]
[312375907,1705845041123,-500.0,0.00027397,2]
[312375908,1705845041133,-500.0,0.00027397,2]
[312375909,1705845041143,-375.34644847,0.00027397,2]
[312375910,1705845041152,-500.0,0.00027397,2]
[312375911,1705845041162,-500.0,0.00027397,2]
[312375912,1705845041171,-500.96434093,0.00027397,2]
[312375913,1705845041180,-621.95,0.00027397,2]
[312375914,1705845041189,-500.0,0.00027397,2]
[312375915,1705845041198,-500.0,0.00027397,2]
[312375916,1705845041207,-537.13772058,0.00027397,2]
[312375917,1705845041216,-261.70582474,0.00027397,2]
[312375918,1705845041226,-504.10624072,0.00027397,2]
[312375919,1705845041236,-500.0,0.00027397,2]
[312375920,1705845041245,-500.0,0.00027397,2]
[312375921,1705845041254,-500.76303151,0.00027397,2]
[312375922,1705845041264,-500.0,0.00027397,2]
[312375923,1705845041273,-500.0,0.00027397,2]
[312375924,1705845041282,-874.39,0.00027397,2]
[312375925,1705845041292,-500.0,0.00027397,2]
[312375926,1705845041301,-500.0,0.00027397,2]
[312375927,1705845041310,-500.0,0.00027397,2]
[312375928,1705845041319,-500.0,0.00027397,2]
[312375929,1705845041329,-500.0,0.00027397,2]
[312375930,1705845041338,-500.0,0.00027397,2]
[312375931,1705845041347,-500.74589736,0.00027397,2]
[312375932,1705845041357,-1000.0,0.00027397,2]
[312375933,1705845041367,-558.44,0.00027397,2]
[312375934,1705845041376,-221.60056194,0.00027397,2]
[312375935,1705845041385,-500.0,0.00027397,2]
[312375936,1705845041395,-1030.37,0.00027397,2]
[312375937,1705845041404,-2306.94,0.00027397,2]
[312375938,1705845041414,-798.39,0.00027397,2]
[312375939,1705845041423,-500.0,0.00027397,2]
[312375940,1705845041432,-500.0,0.00027397,2]
[312375941,1705845041441,-500.0,0.00027397,2]
[312375942,1705845041451,-500.0,0.00027397,2]
[312375943,1705845041460,-500.0,0.00027397,2]
[312375944,1705845041469,-500.0,0.00027397,2]
[312375945,1705845041482,-500.19381526,0.00027397,2]
[312375946,1705845041491,-500.0,0.00027397,2]
[312375947,1705845041500,-500.0,0.00027397,2]
[312375948,1705845041509,-556.67,0.00027397,2]
[312375949,1705845041519,-957.57,0.00027397,2]
[312375950,1705845041529,-569.96,0.00027397,2]
[312375951,1705845041538,-555.99,0.00027397,2]
[312375953,1705845041547,-500.0,0.00027397,2]
[312375955,1705845041559,-500.0,0.00027397,2]
[312375956,1705845041569,-1832.27,0.00027397,2]
[312375958,1705845041579,-527.23,0.00027397,2]
[312375960,1705845041588,-500.0,0.00027397,2]
[312375961,1705845041597,-500.0,0.00027397,2]
[312375963,1705845041607,-500.0,0.00027397,2]
[312375965,1705845041616,-500.0,0.00027397,2]
[312375966,1705845041625,-500.0,0.00027397,2]
[312375967,1705845041634,-500.0,0.00027397,2]
[312375968,1705845041644,-500.0,0.00027397,2]
[312375969,1705845041653,-756.22,0.00027397,2]
[312375970,1705845041662,-500.0,0.00027397,2]
[312375971,1705845041671,-500.0,0.00027397,2]
[312375973,1705845041680,-1665.91,0.00027397,2]
[312375975,1705845041689,-500.0,0.00027397,2]
[312375977,1705845041699,-487.46844157,0.00027397,2]
[312375978,1705845041708,-500.0,0.00027397,2]
[312375980,1705845041718,-155.0,0.00027397,2]
[312375981,1705845041727,-155.0,0.00027397,2]
[312375982,1705845041736,-472.17392242,0.00027397,2]
[312375983,1705845041747,-612.33876785,0.00027397,2]
[312375984,1705845041755,-504.61396894,0.00027397,2]
[312375985,1705845041764,-1117.92,0.00027397,2]
[312375986,1705845041773,-204.32141091,0.00027397,2]
[312375987,1705845041783,-500.0,0.00027397,2]
[312375988,1705845041792,-500.0,0.00027397,2]
[312375989,1705845041800,-779.21,0.00027397,2]
[312375990,1705845041810,-1000.0,0.00027397,2]
[312375991,1705845041819,-602.55421937,0.00027397,2]
[312375992,1705845041828,-500.0,0.00027397,2]
[312375993,1705845041837,-500.0,0.00027397,2]
[312375994,1705845041846,-500.0,0.00027397,2]
[312375995,1705845041855,-500.0,0.00027397,2]
[312375996,1705845041864,-500.0,0.00027397,2]
[312375997,1705845041873,-805.13,0.00027397,2]
[312375998,1705845041882,-500.0,0.00027397,2]
[312375999,1705845041891,-500.0,0.00027397,2]
[312376000,1705845041901,-500.0,0.00027397,2]
[312376001,1705845041910,-264.95436208,0.00027397,2]
[312376002,1705845041919,-500.0,0.00027397,2]
[312376003,1705845041928,-500.0,0.00027397,2]
[312376004,1705845041937,-500.0,0.00027397,2]
[312376005,1705845041946,-672.94,0.00027397,2]
[312376006,1705845041955,-500.0,0.00027397,2]
[312376007,1705845041963,-500.0,0.00027397,2]
[312376008,1705845041972,-875.2,0.00027397,2]
[312376009,1705845041981,-500.0,0.00027397,2]
[312376010,1705845041991,-500.0,0.00027397,2]
[312376011,1705845042000,-500.0,0.00027397,2]
[312376012,1705845042010,-676.85,0.00027397,2]
[312376013,1705845042019,-1899.5,0.00027397,2]
[312376014,1705845042029,-526.3,0.00027397,2]
[312376015,1705845042038,-500.0,0.00027397,2]
[312376016,1705845042047,-500.0,0.00027397,2]
[312376017,1705845042056,-500.0,0.00027397,2]
[312376018,1705845042065,-24464.93,0.00027397,2]
[312376019,1705845042074,-500.0,0.00027397,2]
[312376020,1705845042083,-5949.17,0.00027397,2]
[312376021,1705845042092,-500.0,0.00027397,2]
[312376022,1705845042101,-776.61,0.00027397,2]
[312376023,1705845042111,-500.17407216,0.00027397,2]
[312376024,1705845042121,-525.72459261,0.00027397,2]
[312376025,1705845042131,-500.0,0.00027397,2]
[312376026,1705845042140,-500.0,0.00027397,2]